lending/lending_fUSD_20250317
["ID","MTS","AMOUNT","RATE_DAILY","PERIOD"]
[356293580,1742206232120,-1232.044,0.00016006,2]
[356293581,1742206232129,-2033.0,0.00016006,2]
[356293582,1742206232138,-1418.0,0.00016006,2]
[356293583,1742206232150,-571.0,0.00016006,2]
[356293584,1742206232159,-3934.0,0.00016006,2]
[356293585,1742206232168,-151.0,0.00016006,2]
[356293586,1742206232178,-200.0,0.00016045,2]
[356293587,1742206232188,-434.12775321,0.0001605,2]
[356293588,1742206232198,-200.0,0.00016159,2]
[356293589,1742206232207,-150.0,0.00016161,2]
[356293590,1742206232217,-300.0,0.00016162,2]
[356293591,1742206232226,-240.87737848,0.00016189,2]
[356293592,1742206232237,-4394.78702761,0.00016189,2]
[356293593,1742206232246,-1000.0,0.00016189,2]
[356293594,1742206232256,-349.3347,0.00016189,2]
[356293595,1742206232265,-5000.0,0.00016189,2]
[356293596,1742206232274,-8865.74642958,0.0001619,2]
[356293597,1742206232284,-240.87737848,0.0001619,2]
[356293598,1742206232294,-4394.78702752,0.0001619,2]
[356293599,1742206232304,-240.87737848,0.00016191,2]
[356293600,1742206232313,-4394.78702752,0.00016191,2]
[356293601,1742206232323,-240.87737848,0.00016193,2]
[356293602,1742206232332,-4394.78702752,0.00016193,2]
[356293603,1742206232342,-240.87737848,0.00016194,2]
[356293604,1742206232352,-4394.78702752,0.00016194,2]
[356293605,1742206232362,-240.87737848,0.00016195,2]
[356293606,1742206232371,-4394.78702752,0.00016195,2]
[356293607,1742206232380,-240.87737848,0.00016196,2]
[356293608,1742206232390,-4394.78702752,0.00016196,2]
[356293609,1742206232399,-240.87737848,0.00016198,2]
[356293610,1742206232409,-4394.78702752,0.00016198,2]
[356293611,1742206232418,-240.87737848,0.00016199,2]
[356293612,1742206232428,-696.02656301,0.00016199,2]
[356293613,1742206232437,-785.592,0.00016199,2]
[356293614,1742206232447,-240.87737848,0.000162,2]
[356293616,1742206232456,-283.74716586,0.000162,2]
[356293618,1742206232466,-150.0,0.00016271,2]
[356293620,1742206232475,-160.08559747,0.00016273,2]
[356293622,1742206232484,-167.8042543,0.00016273,2]
[356293624,1742206232493,-6104.38,0.00016279,2]
[356293626,1742206232502,-6104.38,0.00016279,2]
[356293628,1742206232511,-200.0,0.00016289,2]
[356293630,1742206232520,-200.0,0.00016289,2]
[356293632,1742206232530,-809.15,0.00016289,2]
[356293634,1742206232539,-200.0,0.00016289,2]
[356293636,1742206232548,-5237.4643116,0.00016289,2]
[356293638,1742206232557,-507.3534495,0.00016289,2]
[356293640,1742206232566,-2366.1105725,0.00016289,2]
[356293642,1742206232575,-151.39927,0.00016289,15]
[356293644,1742206232583,-479.05045511,0.00016289,2]
[356293646,1742206232592,-97845.58630389,0.00016289,2]
[356293648,1742206232604,-79429.92341337,0.00016289,2]
[356293650,1742206232615,-93100.59734373,0.00016289,2]
[356293652,1742206232624,-420641.81761485,0.00016289,2]
[356293654,1742206232635,-883.48900585,0.00016289,2]
[356293656,1742206232646,-3917.8,0.00016289,2]
[356293658,1742206232657,-257.38927445,0.00016289,2]
[356293679,1742206232840,-343.91813192,0.00016289,2]
[356293681,1742206232851,-439.82856113,0.00016289,2]
[356293683,1742206232863,-9005.90667794,0.00016289,2]
[356293686,1742206232877,-20438.5455,0.00016289,2]
[356293691,1742206232918,-470.18349059,0.00016289,2]
[356293783,1742206237871,-309.00000075,0.00014792,2]
[356293784,1742206237925,-115.17999925,0.00014792,2]
[356293785,1742206237935,-4394.78702752,0.00016199,2]
[356293786,1742206237944,-4394.78702752,0.000162,2]
[356293787,1742206237954,-47524.76548677,0.00016289,2]
[356293788,1742206237966,-2481.16289941,0.00016289,2]
[356293791,1742206240015,-1508.77679682,0.00016289,2]
[356293792,1742206240027,-659.68593126,0.00016289,2]
[356293793,1742206240226,-51278.65463288,0.00016289,2]
[356293794,1742206240281,-67104.6095,0.00016289,2]
[356293795,1742206240504,-2942.54781803,0.00016289,2]
[356293819,1742206246411,-151.46521,0.00016289,15]
[356293820,1742206246421,-368.91631683,0.00016289,2]
[356293821,1742206246432,-644.52882462,0.00016289,2]
[356293822,1742206246444,-77808.05425873,0.00016289,2]
[356293824,1742206437164,-151.46521,0.00016289,15]
[356293826,1742206445376,151.53115,0.00016289,15]
[356293827,1742206476376,-200.0,0.00016159,2]
[356293828,1742206476402,-4800.0,0.00016159,2]
[356293832,1742206668144,-151.53115,0.00016289,15]
[356293833,1742206726795,-200.0,0.00015438,2]
[356293834,1742206726817,-200.0,0.00015467,2]
[356293835,1742206726846,-150.0,0.00015487,2]
[356293836,1742206726868,-1000.0,0.00015508,2]
[356293837,1742206726889,-150.0,0.00015902,2]
[356293838,1742206726910,-434.12775321,0.00016056,2]
[356293839,1742206726934,-3154.86,0.00016159,2]
[356293840,1742206726955,-2484.71961556,0.00016189,2]
[356293841,1742206726977,-1000.0,0.00016189,2]
[356293842,1742206726998,-5000.0,0.00016189,2]
[356293843,1742206727020,-40741.0642,0.00016189,2]
[356293844,1742206727041,-1000.0,0.00016189,2]
[356293845,1742206727062,-2484.71961555,0.0001619,2]
[356293846,1742206727083,-2484.71961555,0.00016191,2]
[356293847,1742206727104,-2484.71961555,0.00016193,2]
[356293848,1742206727126,-2484.71961555,0.00016194,2]
[356293849,1742206727147,-758.176,0.00016194,2]
[356293850,1742206727168,-167.329,0.00016195,2]
[356293851,1742206727190,-2484.71961555,0.00016195,2]
[356293852,1742206727211,-2484.71961555,0.00016196,2]
[356293853,1742206727233,-2484.71961555,0.00016198,2]
[356293854,1742206727258,-2484.71961555,0.00016199,2]
[356293855,1742206727279,-2484.71961555,0.000162,2]
[356293856,1742206727300,-15582.9243366,0.000162,2]
[356293857,1742206727323,-982.6989922,0.000162,2]
[356293858,1742206727345,-775.44,0.00016289,2]
[356293859,1742206727367,-589.3515972,0.00016289,2]
[356293860,1742206727388,-347.32208024,0.00016289,2]
[356293861,1742206727410,-1653.3503093,0.00016289,2]
[356293862,1742206727432,-3659.7458044,0.00016289,2]
[356293863,1742206727453,-151.49818,0.00016289,15]
[356293864,1742206727475,-383.24036409,0.00016289,2]
[356293865,1742206727498,-76685.67522725,0.00016289,2]
[356293866,1742206733415,-5000.0,0.00016189,2]
[356293867,1742206733440,-95000.0,0.00016289,2]
[356293868,1742206734741,-491.126331,0.00016289,2]
[356293869,1742206734766,-44615.21042154,0.00016289,2]
[356293870,1742206734789,-54893.66324746,0.00016289,2]
[356293872,1742207109568,119260.20458591,0.0001,2]
[356293873,1742207109786,756474.24652442,0.0001,2]
[356293874,1742207112201,-500.0,0.0001,2]
[356293897,1742207432295,-1222.65758095,9.999e-05,2]
[356293898,1742207432529,-387.80940007,9.999e-05,2]
[356293899,1742207432559,-633.91785618,9.999e-05,2]
[356293900,1742207432571,-821.26328869,9.999e-05,2]
[356293901,1742207432583,-1198.65,9.999e-05,2]
[356293902,1742207432594,-953.44,9.999e-05,2]
[356293908,1742207432933,-961.80359016,9.999e-05,2]
[356293909,1742207432944,-3497.45828395,9.999e-05,2]
[356293910,1742207432953,-300.0,9.999e-05,2]
[356293911,1742207432962,-2639.59417965,0.0001,2]
[356293912,1742207432974,-3709.87844672,0.0001,2]
[356293913,1742207432985,-5327.0056312,0.0001,2]
[356293914,1742207432997,-505.79366583,0.0001,2]
[356293918,1742207438082,-468.73965536,0.0001,2]
[356293919,1742207438093,-75370.39812816,0.0001,2]
[356293920,1742207438158,-3059.62070875,0.0001,2]
[356293921,1742207438170,-190866.2174571,0.0001,2]
[356293922,1742207438182,-28207.13653497,0.0001,2]
[356293923,1742207438247,-3236.70903572,0.0001,2]
[356293933,1742207440306,-367.22974312,0.0001,2]
[356293934,1742207440419,-2452.45000008,0.0001,2]
[356293935,1742207440529,-2389.69999988,0.0001,2]
[356293936,1742207440574,-57060.65861663,0.0001,2]
[356293937,1742207440585,-9819.98138706,0.0001,2]
[356293941,1742207445243,-166049.64727215,0.0001,2]
[356293942,1742207445342,-26394.85840123,0.0001,2]
[356293943,1742207445352,-337036.67424801,0.0001,2]
[356293944,1742207445362,-250.0,0.00010999,2]
[356293945,1742207445371,-250.0,0.00010999,2]
[356293946,1742207445380,-420.0,0.00010999,2]
[356293947,1742207445390,-150.0,0.00011,2]
[356293948,1742207445399,-250.0,0.00011,2]
[356293949,1742207445408,-290.18294598,0.00012,2]
[356293950,1742207445418,-587.0,0.00012099,2]
[356293951,1742207445427,-150.0,0.00012873,2]
[356293952,1742207445437,-564.0,0.00013309,2]
[356293953,1742207445447,-150.0,0.00014845,2]
[356293954,1742207445456,-150.0,0.00015243,2]
[356293955,1742207445466,-7402.1,0.00015243,2]
[356293956,1742207445475,-1350.74,0.00015243,2]
[356293957,1742207445489,-240.11,0.00015292,2]
[356293958,1742207445498,-2063.82,0.00015568,2]
[356293959,1742207445508,-150.0,0.00015568,2]
[356293960,1742207445518,-150.0,0.00015568,7]
[356293961,1742207445528,-779.62,0.00015741,2]
[356293962,1742207445538,-250.0,0.00015745,2]
[356293963,1742207445551,-498.58,0.000158,2]
[356293964,1742207445571,-779.62,0.000158,2]
[356293965,1742207445581,-434.12775321,0.00016093,2]
[356293966,1742207445590,-5403.07792233,0.0001613,2]
[356293967,1742207445601,-200.0,0.00016159,2]
[356293968,1742207445611,-243.21185646,0.00016188,2]
[356293969,1742207445620,-2500.0,0.00016189,2]
[356293970,1742207445774,-223.8225,0.00016189,2]
[356293971,1742207445784,-1562.1473,0.00016189,2]
[356293972,1742207445794,-2484.71961554,0.0001619,2]
[356293973,1742207445803,-2484.71961554,0.00016191,2]
[356293974,1742207445813,-2484.71961554,0.00016193,2]
[356293975,1742207445824,-2484.71961554,0.00016194,2]
[356293976,1742207445835,-2484.71961554,0.00016195,2]
[356293977,1742207445845,-2484.71961554,0.00016196,2]
[356293978,1742207445855,-2484.71961554,0.00016198,2]
[356293979,1742207445865,-2484.71961554,0.00016199,2]
[356293980,1742207445874,-2484.71961554,0.000162,2]
[356293981,1742207445884,-634.17,0.00016248,2]
[356293982,1742207445895,-300.0,0.00016287,2]
[356293983,1742207445904,-604.79948188,0.00016288,5]
[356293984,1742207445914,-138346.76779526,0.00016288,14]
[356293985,1742207445924,-305.42002192,0.00016288,2]
[356293986,1742207445934,-184.60688969,0.00016289,2]
[356293987,1742207445944,-743.13,0.00016289,2]
[356293988,1742207445954,-815.3468299,0.00016289,2]
[356293989,1742207445964,-151.0,0.00016289,2]
[356293990,1742207445974,-348.483988,0.00016289,2]
[356293991,1742207445983,-348.483988,0.00016289,2]
[356293992,1742207445994,-155.214684,0.00016289,2]
[356293993,1742207446005,-151.0,0.00016289,2]
[356293994,1742207446016,-151.0,0.00016289,2]
[356293995,1742207446025,-151.0,0.00016289,2]
[356293996,1742207446035,-151.0,0.00016289,2]
[356293997,1742207446044,-151.0,0.00016289,2]
[356293998,1742207446053,-151.0,0.00016289,2]
[356293999,1742207446064,-151.0,0.00016289,2]
[356294000,1742207446073,-151.0,0.00016289,2]
[356294001,1742207446083,-151.0,0.00016289,2]
[356294002,1742207446092,-193.84,0.00016289,2]
[356294003,1742207446102,-151.0,0.00016289,2]
[356294004,1742207446112,-151.0,0.00016289,2]
[356294005,1742207446121,-151.0,0.00016289,2]
[356294007,1742207446132,-2146.1904126,0.00016289,2]
[356294009,1742207446142,-151.0,0.00016289,2]
[356294010,1742207446152,-151.0,0.00016289,2]
[356294011,1742207446162,-151.0,0.00016289,2]
[356294012,1742207446171,-151.0,0.00016289,2]
[356294013,1742207446181,-818.5438852,0.00016289,2]
[356294014,1742207446190,-171.1364,0.00016289,2]
[356294015,1742207446200,-151.52291,0.00016289,15]
[356294016,1742207446210,-306.59229127,0.00016289,2]
[356294017,1742207446219,-173040.70851903,0.00016289,2]
[356294018,1742207446229,-193331.9385498,0.00016289,2]
[356294019,1742207446243,-272.37960492,0.00016289,2]
[356294033,1742208369432,2003.95,0.000201,90]
[356294053,1742208632321,-888.56,0.0001365,2]
[356294054,1742208632331,-250.0,0.00014488,2]
[356294055,1742208632340,-1031.91,0.00014502,2]
[356294056,1742208632349,-161.15,0.0001453,2]
[356294057,1742208632359,-200.0,0.00014543,2]
[356294058,1742208632368,-323.14,0.00014798,2]
[356294059,1742208632377,-323.14,0.00014837,2]
[356294060,1742208632386,-260.3,0.00014863,2]
[356294061,1742208632395,-323.14,0.00014875,2]
[356294062,1742208632404,-323.14,0.00014914,2]
[356294063,1742208632414,-300.0,0.00014937,2]
[356294064,1742208632423,-156.39,0.00014938,2]
[356294065,1742208632433,-9916.74,0.00014938,2]
[356294066,1742208632442,-3125.67,0.00014942,2]
[356294067,1742208632452,-323.14,0.00014953,2]
[356294068,1742208632462,-323.14,0.00014992,2]
[356294069,1742208632471,-150.0,0.00015015,2]
[356294070,1742208632482,-323.14,0.00015031,2]
[356294071,1742208632491,-323.14,0.0001507,2]
[356294072,1742208632501,-243.42,0.00015078,2]
[356294073,1742208632510,-300.0,0.000151,5]
[356294074,1742208632519,-2000.0,0.00015108,2]
[356294075,1742208632528,-323.14,0.00015109,2]
[356294076,1742208632539,-323.14,0.00015148,2]
[356294077,1742208632549,-500.0,0.00015158,2]
[356294078,1742208632559,-150.0,0.00015158,2]
[356294079,1742208632568,-323.14,0.00015187,2]
[356294080,1742208632578,-700.0,0.000152,5]
[356294081,1742208632587,-323.14,0.00015226,2]
[356294082,1742208632597,-323.14,0.00015265,2]
[356294083,1742208632607,-1000.0,0.000153,5]
[356294084,1742208632616,-323.14,0.00015304,2]
[356294085,1742208632626,-161.15,0.00015337,2]
[356294086,1742208632635,-323.14,0.00015343,2]
[356294087,1742208632644,-323.14,0.00015382,2]
[356294088,1742208632653,-1400.0,0.000154,5]
[356294089,1742208632663,-323.14,0.0001542,2]
[356294090,1742208632673,-185.5,0.00015434,2]
[356294091,1742208632682,-323.14,0.00015459,2]
[356294092,1742208632691,-500.0,0.00015479,2]
[356294094,1742208632701,-323.14,0.00015498,2]
[356294096,1742208632710,-1800.0,0.000155,5]
[356294097,1742208632719,-164.88,0.00015503,2]
[356294099,1742208632729,-323.14,0.00015537,2]
[356294101,1742208632739,-1000.0,0.00015568,2]
[356294103,1742208632750,-250.0,0.00015568,2]
[356294105,1742208632760,-9752.32713,0.00015568,2]
[356294106,1742208632771,-4947.25262297,0.00015568,2]
[356294107,1742208632783,-7933.01844227,0.00015568,2]
[356294108,1742208632794,-762.17542217,0.00015568,2]
[356294109,1742208632805,-505.22638259,0.00015568,2]
[356294110,1742208632814,-98.12221035,0.000156,5]
[356294111,1742208632826,-201.87778965,0.000156,5]
[356294112,1742208632835,-300.0,0.000157,5]
[356294113,1742208632846,-300.0,0.000158,5]
[356294114,1742208632859,-300.0,0.00015843,2]
[356294115,1742208632868,-300.0,0.000159,5]
[356294116,1742208632877,-888.56,0.00015914,2]
[356294117,1742208632887,-173.01071031,0.00016,2]
[356294118,1742208632900,-592.36206145,0.00016,2]
[356294119,1742208632958,-262.61341025,0.00016,2]
[356294120,1742208632968,-434.12775321,0.00016087,2]
[356294121,1742208632980,-151.52291,0.0001613,15]
[356294122,1742208632991,-161.15,0.00016144,2]
[356294124,1742208633001,-200.0,0.00016159,2]
[356294126,1742208633011,-283.74716586,0.000162,2]
[356294127,1742208633022,-160.08559747,0.00016273,2]
[356294128,1742208633032,-606.541,0.00016288,2]
[356294129,1742208633042,-197.1883284,0.00016288,2]
[356294131,1742208633052,-151.0,0.00016289,2]
[356294133,1742208633062,-152.315489,0.00016289,2]
[356294135,1742208633072,-200.0,0.00016289,2]
[356294138,1742208633083,-712.16,0.00016289,2]
[356294140,1742208633092,-874.8157794,0.00016289,2]
[356294143,1742208633118,-1476.247445,0.00016289,2]
[356294145,1742208633128,-507.3534498,0.00016289,2]
[356294147,1742208633137,-405.19910529,0.00016289,2]
[356294149,1742208633149,-96.09858871,0.00016289,2]
[356294151,1742208633159,-171.0,0.00016289,3]
[356294153,1742208633168,-502.0,0.00016289,2]
[356294156,1742208633178,-341.08392404,0.00016289,2]
[356294158,1742208633188,-1505.84496798,0.00016289,2]
[356294160,1742208633200,-13427.43366975,0.00016289,2]
[356294162,1742208633211,-3777.19374894,0.00016289,2]
[356294164,1742208633224,-3700.0,0.00016289,2]
[356294168,1742208633249,-475.47500001,0.00016289,2]
[356294170,1742208633261,-551.93113899,0.00016289,2]
[356294173,1742208633277,-639.900128,0.00016289,2]
[356294179,1742208638219,-114354.78816155,0.00016289,2]
[356294180,1742208638230,-103294.26835194,0.00016289,2]
[356294181,1742208638242,-334.47,0.00016289,2]
[356294182,1742208638278,-3928.34057448,0.00016289,2]
[356294183,1742208638289,-13401.88,0.00016289,2]
[356294184,1742208638327,-547.35,0.00016289,2]
[356294185,1742208638339,-1001.8316614,0.00016289,2]
[356294186,1742208638352,-417.59,0.00016289,2]
[356294187,1742208638433,-1587.68597813,0.00016289,2]
[356294196,1742208640374,-615.6505,0.00016289,2]
[356294197,1742208640434,-565.32665385,0.00016289,2]
[356294198,1742208640492,-4555.55,0.00016289,2]
[356294199,1742208640504,-586.54163643,0.00016289,2]
[356294200,1742208640613,-416.59088653,0.00016289,2]
[356294201,1742208640628,-9609.59999992,0.00016289,2]
[356294202,1742208640640,-123956.24520946,0.00016289,2]
[356294203,1742208640748,-411.31082313,0.00016289,2]
[356294204,1742208640801,-58749.13786081,0.00016289,2]
[356294205,1742208640812,-450.02198198,0.00016289,2]
[356294222,1742208643367,-21230.10760552,0.00016289,2]
[356294226,1742208645126,-8812.05269706,0.00016289,2]
[356294227,1742208645151,-40578.15702,0.00016289,2]
[356294233,1742209831543,-261.96657699,0.00012889,2]
[356294234,1742209831595,-642.17342301,0.00012889,2]
[356294235,1742209831605,-240.11,0.00014884,2]
[356294236,1742209831614,-1203.66482699,0.00014885,2]
[356294237,1742209831647,-678.43517301,0.00014885,2]
[356294238,1742209831657,-150.0,0.00014894,2]
[356294239,1742209831667,-1000.0,0.00014904,2]
[356294240,1742209831678,-150.0,0.00014912,2]
[356294241,1742209831688,-150.0,0.00014916,7]
[356294242,1742209831698,-162.61,0.00014922,2]
[356294243,1742209831708,-250.0,0.00014934,2]
[356294244,1742209831718,-150.0,0.00014939,2]
[356294245,1742209831728,-150.99,0.00014939,2]
[356294246,1742209831737,-150.0,0.00014946,2]
[356294247,1742209831747,-250.0,0.00014978,2]
[356294248,1742209831756,-634.17,0.00015016,2]
[356294249,1742209831766,-250.0,0.00015039,2]
[356294250,1742209831776,-153.38623487,0.00015072,2]
[356294251,1742209831785,-904.14,0.00015153,2]
[356294252,1742209831795,-300.0,0.00015192,2]
[356294253,1742209831805,-150.27,0.00015193,2]
[356294254,1742209831816,-2776.12,0.00015193,2]
[356294255,1742209831826,-150.27,0.00015262,2]
[356294256,1742209831835,-150.27,0.00015331,2]
[356294257,1742209831845,-152.36,0.00015352,2]
[356294258,1742209831854,-456.72,0.000154,2]
[356294259,1742209831864,-150.27,0.00015401,2]
[356294260,1742209831875,-5990.58859212,0.00015422,2]
[356294261,1742209831941,-17909.41140788,0.00015422,2]
[356294262,1742209831951,-150.27,0.0001547,2]
[356294263,1742209831961,-1559.24,0.000155,2]
[356294265,1742209831971,-1100.0,0.00015528,2]
[356294267,1742209831981,-150.27,0.00015539,2]
[356294269,1742209831990,-1222.82,0.00015567,2]
[356294271,1742209832000,-8759.57,0.00015567,2]
[356294273,1742209832010,-3700.76,0.00015567,2]
[356294275,1742209832019,-3018.13,0.00015567,2]
[356294277,1742209832028,-300.0,0.00015567,2]
[356294279,1742209832038,-200.0,0.00015568,2]
[356294281,1742209832047,-150.27,0.00015608,2]
[356294283,1742209832058,-150.27,0.00015677,2]
[356294285,1742209832068,-305.42002192,0.0001574,2]
[356294287,1742209832077,-150.27,0.00015746,2]
[356294288,1742209832087,-150.27,0.00015815,2]
[356294289,1742209832097,-150.27,0.00015884,2]
[356294290,1742209832108,-150.27,0.00015953,2]
[356294291,1742209832117,-434.12775321,0.00015958,2]
[356294292,1742209832127,-1562.1473,0.00016093,2]
[356294293,1742209832136,-366.9226,0.00016098,2]
[356294294,1742209832146,-5403.07792233,0.0001613,2]
[356294295,1742209832155,-200.0,0.00016159,2]
[356294296,1742209832165,-166.03096228,0.00016189,2]
[356294297,1742209832174,-9456.54184495,0.00016189,2]
[356294298,1742209832184,-2500.0,0.00016189,2]
[356294299,1742209832194,-223.8225,0.00016189,2]
[356294300,1742209832204,-9456.54184492,0.00016189,2]
[356294301,1742209832214,-166.03096226,0.0001619,2]
[356294302,1742209832224,-166.03096226,0.00016191,2]
[356294303,1742209832233,-166.03096226,0.00016192,2]
[356294304,1742209832243,-243.21185646,0.00016192,2]
[356294305,1742209832415,-538.64153023,0.00016273,2]
[356294306,1742209832428,-508.65305663,0.00016273,2]
[356294307,1742209832438,-167.8042543,0.00016273,2]
[356294308,1742209832447,-158.02154199,0.00016273,2]
[356294309,1742209832457,-495.51249131,0.00016273,2]
[356294310,1742209832467,-356.1,0.00016274,2]
[356294311,1742209832477,-150.92,0.00016279,2]
[356294312,1742209832487,-150.92,0.00016279,2]
[356294313,1742209832496,-604.79948188,0.00016288,5]
[356294314,1742209832506,-629.226,0.00016288,2]
[356294315,1742209832515,-597.40513953,0.00016288,2]
[356294316,1742209832525,-206.23681623,0.00016288,2]
[356294317,1742209832535,-597.40513953,0.00016288,2]
[356294318,1742209832544,-597.40513953,0.00016288,2]
[356294319,1742209832555,-597.40513953,0.00016288,2]
[356294320,1742209832567,-597.40513953,0.00016288,2]
[356294321,1742209832576,-597.40513953,0.00016288,2]
[356294322,1742209832587,-597.40513953,0.00016288,2]
[356294323,1742209832596,-597.40513953,0.00016288,2]
[356294324,1742209832607,-597.40513953,0.00016288,2]
[356294325,1742209832617,-597.40513953,0.00016288,2]
[356294326,1742209832626,-597.40513953,0.00016288,2]
[356294327,1742209832637,-597.40513953,0.00016288,2]
[356294328,1742209832646,-597.40513953,0.00016288,2]
[356294329,1742209832656,-597.40513953,0.00016288,2]
[356294330,1742209832666,-597.40513953,0.00016288,2]
[356294331,1742209832676,-597.40513953,0.00016288,2]
[356294332,1742209832686,-627.2753965,0.00016288,2]
[356294333,1742209832696,-627.2753965,0.00016288,2]
[356294334,1742209832706,-627.2753965,0.00016288,2]
[356294335,1742209832716,-627.2753965,0.00016288,2]
[356294336,1742209832725,-627.2753965,0.00016288,2]
[356294337,1742209832735,-627.2753965,0.00016288,2]
[356294338,1742209832745,-627.2753965,0.00016288,2]
[356294339,1742209832755,-627.2753965,0.00016288,2]
[356294340,1742209832764,-627.2753965,0.00016288,2]
[356294341,1742209832773,-627.2753965,0.00016288,2]
[356294342,1742209832784,-627.2753965,0.00016288,2]
[356294343,1742209832795,-796.63975354,0.00016288,2]
[356294344,1742209832804,-796.63975354,0.00016288,2]
[356294345,1742209832815,-196.448,0.00016289,2]
[356294346,1742209832825,-659.35,0.00016289,2]
[356294347,1742209832835,-417.7480783,0.00016289,2]
[356294348,1742209832845,-157.44239,0.00016289,15]
[356294349,1742209832855,-494.1223829,0.00016289,2]
[356294350,1742209832864,-815.3468305,0.00016289,2]
[356294351,1742209832874,-1630.8778385,0.00016289,2]
[356294352,1742209832883,-150.0,0.00016289,2]
[356294353,1742209832893,-562.47955917,0.00016289,2]
[356294354,1742209832902,-429.47209471,0.00016289,2]
[356294355,1742209832911,-222777.18318779,0.00016289,2]
[356294356,1742209832921,-96821.87204866,0.00016289,2]
[356294357,1742209837424,-3085.56098277,0.0001619,2]
[356294358,1742209837478,-491.99999916,0.0001619,2]
[356294359,1742209837537,-422.05031474,0.0001619,2]
[356294360,1742209837549,-5456.93054825,0.0001619,2]
[356294361,1742209837558,-61045.80808799,0.00016289,2]
[356294362,1742209837584,-1072.35,0.00016289,2]
[356294395,1742209845565,-1049.99669866,0.0001619,2]
[356294396,1742209845827,-857.82849578,0.0001619,2]
[356294397,1742209845839,-7548.71665048,0.0001619,2]
[356294398,1742209845848,-9456.54184492,0.0001619,2]
[356294399,1742209845857,-5440.23957051,0.00016289,2]
[356294443,1742211031799,-300.0,9.999e-05,2]
[356294444,1742211031810,-551.36406778,0.0001,2]
[356294445,1742211031908,-890.00006576,0.0001,2]
[356294446,1742211031963,-370.76858744,0.0001,2]
[356294447,1742211032021,-31096.435,0.0001,2]
[356294465,1742211037707,-898.169,0.0001,2]
[356294471,1742211040114,-466.44202366,0.0001,2]
[356294472,1742211040126,-458747.40563928,0.0001,2]
[356294473,1742211040135,-954605.87607032,0.0001,2]
[356294474,1742211040146,-150.0,0.000105,2]
[356294475,1742211040156,-250.0,0.000105,2]
[356294476,1742211040166,-420.0,0.00010999,2]
[356294477,1742211040175,-250.0,0.00011,2]
[356294478,1742211040188,-150.0,0.00011,2]
[356294479,1742211040198,-250.0,0.00011,2]
[356294480,1742211040207,-4809.48017537,0.00011099,2]
[356294481,1742211040217,-4809.48017533,0.00011099,2]
[356294482,1742211040226,-4809.48017533,0.000113,2]
[356294483,1742211040236,-587.0,0.00012099,2]
[356294484,1742211040246,-150.0,0.00012422,2]
[356294485,1742211040255,-250.0,0.00013213,2]
[356294486,1742211040265,-564.0,0.00013309,2]
[356294487,1742211040275,-828.34,0.00013579,2]
[356294488,1742211040284,-177.71,0.00013594,2]
[356294489,1742211040294,-941.05,0.0001451,2]
[356294490,1742211040303,-1000.0,0.00014537,2]
[356294491,1742211040313,-10141.01,0.00014585,2]
[356294492,1742211040323,-500.0,0.00014631,2]
[356294493,1742211040332,-161.15,0.00014918,2]
[356294494,1742211040341,-215.42,0.00015221,2]
[356294495,1742211040351,-215.42,0.00015261,2]
[356294496,1742211040361,-215.42,0.00015301,2]
[356294497,1742211040372,-215.42,0.00015341,2]
[356294498,1742211040382,-898.17,0.00015379,2]
[356294499,1742211040392,-215.42,0.00015381,2]
[356294500,1742211040402,-215.42,0.00015421,2]
[356294501,1742211040412,-208.24,0.00015459,2]
[356294502,1742211040422,-215.42,0.00015461,2]
[356294503,1742211040432,-9556.65,0.00015497,2]
[356294504,1742211040442,-150.0,0.00015497,7]
[356294505,1742211040452,-215.42,0.00015501,2]
[356294506,1742211040462,-200.0,0.00015528,2]